bitfinex-derivatives/quotes_SOLF0:USTF0_20250224
["timestamp","ask_amount","ask_price","bid_price","bid_amount"]
[1740384374365,4.24221433,160.42,160.41,6.2332]
[1740384374767,0.0402017,160.44,160.4,0.04673683]
[1740384375061,0.0402017,160.44,160.42,6.2326]
[1740384375864,4.23708794,160.43,160.42,6.2326]
[1740384376059,4.23708794,160.43,160.4,0.04673683]
[1740384376060,21.022177,160.43,160.4,6.28013683]
[1740384376365,21.022177,160.43,160.4,0.04673683]
[1740384377162,4.23708794,160.42,160.4,0.04673683]
[1740384377966,4.23708794,160.41,160.4,0.04673683]
[1740384378657,4.23708794,160.41,160.4,6.28033683]
[1740384380261,16.78508906,160.43,160.42,6.2328]
[1740384380872,16.78508906,160.43,160.4,0.04673683]
[1740384381071,16.78508906,160.43,160.34,16.78508906]
[1740384381271,16.78508906,160.43,160.33,12.4724]
[1740384381472,16.78508906,160.43,160.41,6.233]
[1740384382672,16.78508906,160.43,160.4,6.27987991]
[1740384383074,16.78508906,160.43,160.4,0.04647991]
[1740384383470,16.78508906,160.41,160.4,0.04647991]
[1740384383771,16.78508906,160.41,160.4,6.28007991]
[1740384385067,16.78508906,160.41,160.4,0.04647991]
[1740384389676,10.75426939,160.41,160.4,0.04647991]
[1740384392077,10.75426939,160.41,160.37,6.2348]
[1740384392274,10.75426939,160.39,160.32,5.8581]
[1740384392479,8.24,160.4,160.32,5.8581]
[1740384392480,10.75426939,160.34,160.32,5.8581]
[1740384392887,10.75426939,160.34,160.33,6.2363]
[1740384393781,10.75426939,160.34,160.32,0.04118398]
[1740384395679,16.99026939,160.34,160.32,0.04118398]
[1740384395985,10.75426939,160.34,160.32,0.04118398]
[1740384397788,10.75426939,160.34,160.27,1.8899]
[1740384398086,10.75426939,160.3,160.27,1.8899]
[1740384398386,10.75426939,160.28,160.27,8.1285]
[1740384399276,10.75426939,160.28,160.23,6.2401]
[1740384399483,10.75426939,160.24,160.23,6.2401]
[1740384399780,10.75426939,160.26,160.25,6.2391]
[1740384399979,10.75426939,160.3,160.23,10.75426939]
[1740384400179,10.75426939,160.3,160.24,3.8743]
[1740384400481,0.04251658,160.29,160.25,10.75426939]
[1740384400785,10.75426939,160.32,160.3,6.2372]
[1740384400979,10.75426939,160.32,160.25,10.75426939]
[1740384400980,10.75426939,160.34,160.29,10.75426939]
[1740384401281,10.75426939,160.36,160.29,10.75426939]
[1740384401488,10.75426939,160.36,160.33,6.236]
[1740384401688,10.75426939,160.36,160.32,10.75426939]
[1740384401985,10.80038421,160.36,160.33,0.04251658]
[1740384404389,10.80038421,160.36,160.34,6.2359]
[1740384405484,10.80038421,160.36,160.33,0.04251658]
[1740384405684,10.75426939,160.34,160.33,0.04251658]
[1740384405884,10.75426939,160.34,160.25,3.9413]
[1740384406085,10.75426939,160.27,160.25,1.9579]
[1740384406388,10.75426939,160.27,160.24,1.9864]
[1740384406586,10.75426939,160.27,160.25,6.2394]
[1740384407595,8.40406909,160.28,160.25,6.2394]
[1740384408092,8.40406909,160.28,160.24,8.2259]
[1740384408391,25.230518,160.28,160.19,3.9413]
[1740384410587,37.47326417,160.28,160.23,6.24]
[1740384411593,37.47326417,160.28,160.23,6.2399]
[1740384412094,25.230518,160.28,160.23,6.2399]
[1740384412687,31.468918,160.28,160.22,6.2405]
[1740384412881,43.71166417,160.28,160.22,6.2405]
[1740384413086,37.47326417,160.28,160.19,3.9413]
[1740384413283,12.28681526,160.28,160.2,16.82644891]
[1740384413487,0.04406909,160.28,160.2,16.82644891]
[1740384413687,0.04406909,160.28,160.22,16.82644891]
[1740384413885,0.04406909,160.28,160.27,6.2387]
[1740384415083,0.04406909,160.28,160.22,16.82644891]
[1740384416696,0.04406909,160.28,160.25,6.2392]
[1740384416891,0.04406909,160.28,160.19,195.9413]
[1740384417795,0.04406909,160.28,160.23,6.2399]
[1740384418490,0.04406909,160.28,160.19,195.9413]
[1740384419093,6.28266909,160.28,160.19,195.9413]
[1740384419294,0.04406909,160.28,160.19,3.9413]
[1740384419490,16.82644891,160.27,160.19,3.9413]
[1740384419996,16.82644891,160.24,160.19,10.1829]
[1740384420296,16.82644891,160.24,160.19,3.9413]
[1740384420893,16.82644891,160.24,160.17,1.8424]
[1740384421094,0.04655793,160.25,160.14,3.7005]
[1740384421288,16.82644891,160.2,160.14,3.7005]
[1740384421494,8.4,160.19,160.14,3.7005]
[1740384421694,8.4,160.19,160.17,6.2425]
[1740384421894,8.4,160.19,160.14,3.7005]
[1740384422090,8.4,160.19,160.16,6.2427]
[1740384422290,8.4,160.19,160.14,3.7005]
[1740384422700,8.4,160.19,160.18,6.2422]
[1740384423301,0.0477002,160.21,160.14,20.52694891]
[1740384423494,16.87414911,160.21,160.14,3.7005]
[1740384424099,16.87414911,160.21,160.15,6.2432]
[1740384424804,16.87414911,160.21,160.1,16.82644891]
[1740384425000,16.87414911,160.21,160.11,1.8909]
[1740384425407,16.87414911,160.21,160.15,6.2433]
[1740384425608,16.82644891,160.17,160.11,1.8909]
[1740384425806,16.82644891,160.15,160.04,8.6570715]
[1740384425997,16.82644891,160.15,160.04,10.5050715]
[1740384426200,16.82644891,160.08,160.04,8.6570715]
[1740384426405,16.82644891,160.1,160.06,6.2468]
[1740384426600,16.82644891,160.1,160.04,8.6570715]
[1740384426900,0.04375028,160.09,160.04,8.6570715]
[1740384428400,0.04375028,160.09,160.04,25.48352041]
[1740384428601,0.04375028,160.09,160.05,1.9431]
[1740384428808,0.04375028,160.09,160.07,6.2461]
[1740384429006,0.04375028,160.09,160.05,1.9431]
[1740384429202,8.44,160.16,160.06,16.82644891]
[1740384429398,8.44,160.16,160.08,16.82644891]
[1740384429707,12.25698586,160.19,160.14,16.82644891]
[1740384429904,12.25698586,160.19,160.15,6.2433]
[1740384430109,16.82644891,160.21,160.1,16.82644891]
[1740384430310,0.04635429,160.19,160.15,0.04232182]
[1740384430710,23.1149032,160.19,160.15,0.04232182]
[1740384431103,6.28845429,160.19,160.15,0.04232182]
[1740384431700,0.04635429,160.19,160.15,0.04232182]
[1740384433310,0.04635429,160.19,160.17,6.2425]
[1740384433501,0.04635429,160.19,160.15,0.04232182]
[1740384434311,0.04635429,160.19,160.15,1.96992182]
[1740384434508,0.04635429,160.19,160.18,6.2422]
[1740384435208,14.8796,160.25,160.21,6.241]
[1740384435407,8.64,160.25,160.06,192.0]
[1740384435711,16.82644891,160.18,160.1,3.956]
[1740384435911,16.82644891,160.18,160.12,6.2445]
[1740384436213,6.2425,160.18,160.12,6.2445]
[1740384436410,0.04111788,160.17,160.13,0.04337976]
[1740384437619,0.04111788,160.17,160.15,6.2432]
[1740384437810,0.04111788,160.17,160.13,16.86982867]
[1740384438010,12.25698586,160.23,160.15,16.82644891]
[1740384438312,12.25698586,160.26,160.15,16.82644891]
[1740384438709,12.25698586,160.26,160.19,16.82644891]
[1740384439327,6.2369,160.32,160.25,23.06594891]
[1740384439511,12.2534525,160.29,160.28,16.82644891]
[1740384439712,0.70686231,160.38,160.28,16.82644891]
[1740384440016,1.09802915,160.37,160.3,16.82644891]
[1740384440217,69.34494395,160.38,160.3,16.82644891]
[1740384440516,0.04734375,160.36,160.33,6.2363]
[1740384441113,0.04734375,160.36,160.32,0.04763413]
[1740384441413,0.04734375,160.36,160.34,16.82644891]
[1740384441615,68.63808164,160.38,160.34,26.86702847]
[1740384442010,103.13719475,160.39,160.34,26.86702847]
[1740384442210,169.04948102,160.4,160.39,6.234]
[1740384442506,139.37948102,160.4,160.39,6.234]
[1740384442706,201.11696701,160.42,160.37,26.86702847]
[1740384442910,199.10976701,160.42,160.4,26.86702847]
[1740384443709,199.10976701,160.42,160.38,0.04001128]
[1740384444219,0.04658327,160.42,160.38,0.04001128]
[1740384450723,0.04658327,160.42,160.38,6.27431128]
[1740384451429,0.04658327,160.42,160.4,6.2335]
[1740384451629,0.04658327,160.42,160.38,0.04001128]
[1740384452122,0.04658327,160.42,160.39,6.2337]
[1740384453130,6.2312,160.47,160.39,6.2337]
[1740384453521,9.38,160.49,160.38,6.2343]
[1740384453727,9.38,160.49,160.37,218.86702847]
[1740384454223,6.2322,160.44,160.37,225.10172847]
[1740384454419,0.04186881,160.45,160.41,0.04681857]
[1740384454825,6.27356881,160.45,160.41,0.04681857]
[1740384455028,0.04186881,160.45,160.41,0.04681857]
[1740384455926,0.04186881,160.45,160.43,26.86702847]
[1740384456728,0.04186881,160.45,160.43,33.09942847]
[1740384456927,0.04186881,160.45,160.43,26.86702847]
[1740384458031,9.34,160.54,160.43,26.86702847]
[1740384458729,6.2303,160.49,160.44,6.2317]
[1740384458921,6.2303,160.49,160.43,26.86702847]
[1740384459325,0.04642606,160.48,160.45,6.2314]
[1740384459529,0.04642606,160.48,160.44,0.04010911]
[1740384460126,6.17100444,160.45,160.44,0.04010911]
[1740384461623,6.10370693,160.45,160.44,0.04010911]
[1740384463127,0.04642606,160.48,160.44,0.04010911]
[1740384464431,6.27692606,160.48,160.44,6.27210911]
[1740384464735,0.04642606,160.48,160.44,6.27210911]
[1740384464935,0.04642606,160.48,160.44,0.04010911]
[1740384465134,0.04642606,160.48,160.44,6.27210911]
[1740384465434,0.04642606,160.48,160.44,0.04010911]
[1740384465634,6.27712606,160.48,160.44,0.04010911]
[1740384465835,0.04642606,160.48,160.44,0.04010911]
[1740384467236,6.2311,160.47,160.44,0.04010911]
[1740384467934,0.04642606,160.48,160.44,0.04010911]
[1740384468135,6.2317,160.45,160.44,0.04010911]
[1740384468442,36.12702847,160.46,160.43,36.99979504]
[1740384468637,6.2321,160.44,160.43,15.45439504]
[1740384468841,36.12702847,160.46,160.43,54.85047512]
[1740384469036,26.86702847,160.44,160.42,103.24813474]
[1740384469340,26.86702847,160.43,160.42,103.24813474]
[1740384470241,26.86702847,160.43,160.41,0.04060664]
[1740384471242,0.04485696,160.45,160.41,0.04060664]
[1740384474533,0.04485696,160.45,160.34,3.8829]
[1740384474534,26.86702847,160.42,160.34,3.8829]
[1740384474740,26.86702847,160.42,160.3,163.42]
[1740384475041,26.86702847,160.39,160.29,3.8055]
[1740384475941,0.04005249,160.36,160.32,0.04508049]
[1740384477040,0.04005249,160.36,160.33,6.2361]
[1740384477242,0.04005249,160.36,160.32,0.04508049]
[1740384477745,0.04005249,160.36,160.35,6.2356]
[1740384477939,0.04005249,160.36,160.32,0.04508049]
[1740384478344,0.04005249,160.36,160.34,6.2356]
[1740384478643,0.04005249,160.36,160.32,0.04508049]
[1740384478843,0.04005249,160.36,160.35,6.2356]
[1740384482146,5.249e-05,160.36,160.35,6.2356]
[1740384483244,36.02702847,160.48,160.43,6.2322]
[1740384484460,0.04763475,160.47,160.44,0.0411533]
[1740384484949,26.86702847,160.45,160.33,3.8465]
[1740384485149,33.09992847,160.42,160.29,28.77482847]
[1740384485350,26.86702847,160.42,160.29,32.62132847]
[1740384485951,6.2334,160.41,160.34,6.2356]
[1740384486146,0.04743396,160.37,160.34,6.27891264]
[1740384486445,0.04743396,160.37,160.34,0.04331264]
[1740384488046,6.28223396,160.37,160.34,0.04331264]
[1740384488554,6.2353,160.36,160.34,0.04331264]
[1740384490347,26.86702847,160.36,160.34,0.04331264]
[1740384490548,6.2356,160.35,160.34,0.04331264]
[1740384490851,26.86702847,160.36,160.34,0.04331264]
[1740384492945,33.10252847,160.36,160.25,3.8444]
[1740384493348,26.86702847,160.36,160.25,3.8444]
[1740384493549,33.10232847,160.36,160.25,3.8444]
[1740384494247,0.04257978,160.32,160.29,0.0478365]
[1740384494444,0.04257978,160.32,160.31,6.2371]
[1740384494950,0.04257978,160.32,160.29,0.0478365]
[1740384495147,0.04257978,160.32,160.31,6.2371]
[1740384504558,26.86702847,160.42,160.29,0.0478365]
[1740384504754,10.1386443,160.41,160.37,6.2345]
[1740384504959,9.04,160.41,160.28,1.9458]
[1740384505158,1.09861753,160.4,160.28,1.9458]
[1740384505353,1.09861753,160.4,160.37,6.2347]
[1740384505555,9.04,160.41,160.28,1.9458]
[1740384505755,0.04415382,160.4,160.37,0.04268487]
[1740384505950,9.04,160.41,160.28,1.9458]
[1740384506154,0.04017486,160.4,160.37,0.04022063]
[1740384506358,1.09862534,160.4,160.28,1.9458]
[1740384506550,9.04,160.4,160.28,1.9458]
[1740384506858,9.04,160.4,160.37,6.2345]
[1740384507260,9.07975924,160.4,160.39,6.234]
[1740384507457,0.03975924,160.4,160.37,0.04714765]
[1740384507853,0.03975924,160.4,160.39,6.234]
[1740384508058,0.03975924,160.4,160.37,0.04714765]
[1740384508561,0.03975924,160.4,160.38,6.2341]
[1740384508956,0.03975924,160.4,160.37,0.04714765]
[1740384509160,0.03975924,160.4,160.39,6.234]
[1740384509662,5.924e-05,160.4,160.39,6.234]
[1740384515268,5.924e-05,160.4,160.38,8.1331]
[1740384515566,5.924e-05,160.4,160.38,6.2343]
[1740384515765,5.924e-05,160.4,160.37,0.04714765]
[1740384516063,5.924e-05,160.4,160.39,6.234]
[1740384516454,5.924e-05,160.4,160.37,0.04714765]
[1740384517265,5.924e-05,160.4,160.38,6.2341]
[1740384522969,5.924e-05,160.4,160.37,0.04714765]
[1740384523172,5.924e-05,160.4,160.37,6.28174765]
[1740384523871,8.96,160.39,160.37,0.04714765]
[1740384524077,15.1941,160.39,160.37,0.04714765]
[1740384524278,35.82702847,160.39,160.37,0.04714765]
[1740384524482,11.48313508,160.38,160.37,0.04714765]
[1740384524683,6.235,160.37,160.32,6.2366]
[1740384525484,6.2352,160.36,160.32,6.2366]
[1740384525682,0.04712422,160.36,160.33,0.04760837]
[1740384525885,26.91415269,160.36,160.33,0.04760837]
[1740384526183,6.2356,160.35,160.33,0.04760837]
[1740384526574,6.2359,160.34,160.33,0.04760837]
[1740384527780,6.2367,160.33,160.27,6.2385]
[1740384527983,33.10372847,160.33,160.27,6.2385]
[1740384528385,26.86702847,160.33,160.22,3.9365]
[1740384528986,0.039717,160.29,160.26,0.03972168]
[1740384529190,8.94,160.28,160.26,0.03972168]
[1740384531589,15.1786,160.28,160.26,0.03972168]
[1740384532889,8.94,160.28,160.26,0.03972168]
[1740384534489,0.039717,160.29,160.26,0.03972168]
[1740384534690,0.039717,160.29,160.26,6.27852168]
[1740384534691,8.9,160.28,160.26,6.27852168]
[1740384534994,8.9,160.28,160.26,0.03972168]
[1740384535892,8.9,160.28,160.27,6.2387]
[1740384538587,0.039717,160.29,160.28,6.2383]
[1740384539889,8.86,160.33,160.27,3.8404]
[1740384540085,8.86,160.33,160.31,6.2368]
[1740384540397,8.86,160.33,160.27,3.8404]
[1740384541093,0.04379237,160.32,160.28,0.04300116]
[1740384541295,26.91082084,160.32,160.28,0.04300116]
[1740384541792,26.86702847,160.29,160.15,26.86702847]
[1740384541994,38.40693029,160.32,160.18,1.991]
[1740384541995,26.86702847,160.26,160.18,1.991]
[1740384542194,8.86,160.25,160.21,6.2406]
[1740384542393,8.86,160.25,160.18,1.991]
[1740384542793,8.86,160.25,160.22,6.2406]
[1740384543094,0.04657602,160.23,160.22,6.2406]
[1740384543794,7.602e-05,160.23,160.22,6.2406]
[1740384544197,8.86,160.31,160.27,6.2384]
[1740384544595,8.86,160.31,160.18,28.85802847]
[1740384544798,8.86,160.31,160.18,220.85802847]
[1740384545289,0.0428172,160.26,160.25,6.2395]
[1740384545495,8.86,160.31,160.19,1.8361]
[1740384545688,8.86,160.31,160.24,0.04543237]
[1740384545894,0.04425547,160.29,160.24,0.04543237]
[1740384546396,6.239,160.27,160.24,0.04543237]
[1740384546792,26.91128394,160.29,160.24,0.04543237]
[1740384547194,1.09810463,160.28,160.24,0.04543237]
[1740384548095,26.91128394,160.29,160.24,0.04543237]
[1740384548286,0.04425547,160.29,160.24,0.04543237]
[1740384549297,0.04425547,160.29,160.24,6.28493237]
[1740384549999,6.2392,160.26,160.24,0.04543237]
[1740384550295,0.04425547,160.29,160.24,0.04543237]
[1740384550697,6.2389,160.27,160.24,0.04543237]
[1740384550897,0.04425547,160.29,160.24,6.28503237]
[1740384551391,0.04425547,160.29,160.24,0.04543237]
[1740384552297,6.2383,160.28,160.24,0.04543237]
[1740384552794,6.2391,160.26,160.24,0.04543237]
[1740384552996,0.04425547,160.29,160.24,0.04543237]
[1740384554000,6.2389,160.27,160.24,0.04543237]
[1740384554585,0.04425547,160.29,160.24,0.04543237]
[1740384555097,6.2385,160.28,160.24,0.04543237]
[1740384555297,0.04425547,160.29,160.24,0.04543237]
[1740384556099,6.28245547,160.29,160.24,6.28513237]
[1740384557203,6.28245547,160.29,160.28,6.2383]
[1740384557204,0.04425547,160.29,160.28,6.2383]
[1740384557394,8.8,160.34,160.26,3.7614]
[1740384558293,15.0362,160.34,160.29,6.2377]
[1740384558494,0.04383086,160.33,160.3,0.040675]
[1740384558896,0.04383086,160.33,160.31,6.2371]
[1740384559300,0.04383086,160.33,160.3,0.040675]
[1740384560106,26.91085933,160.33,160.3,0.040675]
[1740384560506,6.2371,160.31,160.3,0.040675]
[1740384560708,26.91085933,160.33,160.25,1.8603]
[1740384561005,26.86702847,160.3,160.25,1.8603]
[1740384561600,6.2383,160.28,160.25,1.8603]
[1740384561906,8.8270225,160.28,160.25,0.04054545]
[1740384562207,27.96556434,160.27,160.18,1.9909]
[1740384562502,6.2405,160.23,160.18,1.9909]
[1740384563307,0.04271645,160.22,160.19,0.03945328]
[1740384564512,0.04271645,160.22,160.19,6.28115328]
[1740384564809,38.37298098,160.27,160.19,0.03945328]
[1740384565103,11.50595251,160.26,160.21,6.2407]
[1740384565309,11.50595251,160.26,160.22,1.8944]
[1740384565510,15.0188,160.27,160.22,1.8944]
[1740384565705,8.78,160.27,160.22,1.8944]
[1740384565907,8.78,160.27,160.23,0.04151841]
[1740384566108,0.03928845,160.26,160.23,0.04151841]
[1740384566413,0.03928845,160.26,160.24,6.2398]
[1740384566911,11.50595251,160.29,160.24,1.8684]
[1740384567107,6.2376,160.3,160.25,6.2392]
[1740384567502,6.2382,160.29,160.24,1.8684]
[1740384568112,0.04730183,160.28,160.24,1.8684]
[1740384568807,6.28560183,160.28,160.24,1.8684]
[1740384569612,0.04730183,160.28,160.24,1.8684]
[1740384571213,0.04730183,160.28,160.24,8.1082]
[1740384575713,6.28560183,160.28,160.24,8.1082]
[1740384576119,16.82701229,160.26,160.23,1.91011841]
[1740384576320,6.2398,160.24,160.23,0.04151841]
[1740384576520,23.06681229,160.24,160.23,0.04151841]
[1740384580223,6.2411,160.21,160.18,1.8001]
[1740384580417,16.82701229,160.22,160.16,1.8647]
[1740384581024,6.2422,160.19,160.16,1.8647]
[1740384581414,6.2422,160.19,160.17,0.04647643]
[1740384583018,23.06921229,160.18,160.17,0.04647643]
[1740384583222,16.82701229,160.16,160.13,8.64995381]
[1740384584220,6.2437,160.14,160.13,8.69533372]
[1740384584424,8.68,160.15,160.13,8.69533372]
[1740384587029,8.68,160.15,160.13,0.04537991]
[1740384589326,0.04233147,160.16,160.14,6.2437]
[1740384589628,0.04233147,160.16,160.13,0.04537991]
[1740384590517,0.04233147,160.16,160.13,6.28927991]
[1740384590727,0.04233147,160.16,160.13,0.04537991]
[1740384590917,6.28533147,160.16,160.13,0.04537991]
[1740384591122,6.28533147,160.16,160.13,6.28937991]
[1740384591424,0.04233147,160.16,160.13,0.04537991]
[1740384591626,0.04233147,160.16,160.14,6.2435]
[1740384591929,8.66,160.23,160.13,0.04537991]
[1740384592118,8.66,160.23,160.12,16.82701229]
[1740384592526,6.2417,160.2,160.12,16.82701229]
[1740384592927,0.04711864,160.18,160.14,16.86956119]
[1740384593129,6.2411,160.21,160.15,1.8398]
[1740384593327,8.64,160.23,160.15,1.8398]
[1740384593524,8.64,160.23,160.17,6.2422]
[1740384594031,6.2416,160.2,160.17,6.2422]
[1740384594235,0.04038431,160.22,160.18,0.04538859]
[1740384594629,6.2411,160.21,160.18,0.04538859]
[1740384596135,0.04038431,160.22,160.18,0.04538859]
[1740384596535,16.8673966,160.22,160.18,0.04538859]
[1740384596932,23.1081966,160.22,160.18,0.04538859]
[1740384597637,6.241,160.21,160.18,0.04538859]
[1740384597836,16.8673966,160.22,160.18,0.04538859]
[1740384598638,23.1081966,160.22,160.18,0.04538859]
[1740384599437,16.82701229,160.2,160.18,0.04538859]
[1740384599638,16.82701229,160.2,160.13,1.8394]
[1740384599837,16.82701229,160.17,160.13,1.8394]
[1740384600036,16.82701229,160.17,160.11,36.35669056]
[1740384600833,0.03927448,160.16,160.12,0.04124515]
[1740384601935,6.28187448,160.16,160.12,0.04124515]
[1740384602437,0.03927448,160.16,160.12,0.04124515]
[1740384602639,16.82701229,160.15,160.12,0.04124515]
[1740384602939,0.03927448,160.16,160.12,0.04124515]
[1740384603339,0.03927448,160.16,160.12,6.28504515]
[1740384603839,6.28167448,160.16,160.12,0.04124515]
[1740384604439,0.03927448,160.16,160.12,0.04124515]
[1740384604940,0.03927448,160.16,160.13,6.2434]
[1740384606441,0.03927448,160.16,160.14,6.243]
[1740384606844,0.03927448,160.16,160.12,0.04124515]
[1740384607541,0.03927448,160.16,160.13,6.2432]
[1740384609037,6.2409,160.2,160.12,16.86825744]
[1740384609238,6.2409,160.2,160.12,16.82701229]
[1740384609837,6.2409,160.2,160.16,6.242]
[1740384610142,6.2845832,160.2,160.16,6.28962056]
[1740384610341,0.0436832,160.2,160.17,6.2416]
[1740384611036,0.0436832,160.2,160.18,6.2415]
[1740384611938,0.0436832,160.2,160.19,6.2412]
[1740384613037,11.49765619,160.22,160.16,0.04762056]
[1740384613238,11.49765619,160.22,160.21,6.2404]
[1740384613437,8.51055619,160.22,160.21,6.2404]
[1740384613634,6.2392,160.25,160.21,6.2404]
[1740384614041,6.2386,160.26,160.22,6.2396]
[1740384614241,0.03934149,160.23,160.22,6.2396]
[1740384614939,16.82701229,160.29,160.25,6.2388]
[1740384615139,25.40701229,160.29,160.25,6.2388]
[1740384615344,31.64451229,160.29,160.25,6.2388]
[1740384616143,23.06511229,160.27,160.18,1.9844]
[1740384616537,0.04436172,160.24,160.21,0.04025622]
[1740384617244,0.04436172,160.24,160.21,6.28055622]
[1740384617445,16.82701229,160.23,160.21,0.04025622]
[1740384617846,23.06661229,160.23,160.21,0.04025622]
[1740384619447,16.82701229,160.23,160.21,0.04025622]
[1740384619642,6.24,160.22,160.21,0.04025622]
[1740384621954,16.82701229,160.23,160.15,1.8479]
[1740384622248,16.82701229,160.2,160.13,1.8326]
[1740384622450,16.82701229,160.18,160.13,1.8326]
[1740384622953,16.82701229,160.2,160.13,1.8326]
[1740384623152,0.04163642,160.17,160.14,0.04685035]
[1740384624355,0.04163642,160.17,160.14,6.28985035]
[1740384628458,0.04163642,160.17,160.14,0.04685035]
[1740384628663,6.2424,160.16,160.14,0.04685035]
[1740384629666,0.04163642,160.17,160.14,0.04685035]
[1740384631458,0.04163642,160.17,160.14,6.28985035]
[1740384631763,0.04163642,160.17,160.14,0.04685035]
[1740384632466,11.45229503,160.22,160.14,0.04685035]
[1740384632665,11.45229503,160.22,160.14,16.87386264]
[1740384632865,25.38701229,160.23,160.14,16.87386264]
[1740384633262,6.2406,160.21,160.14,16.87386264]
[1740384633664,0.04064576,160.19,160.14,16.87386264]
[1740384633862,0.04064576,160.19,160.14,0.04685035]
[1740384634864,16.86765805,160.19,160.14,0.04685035]
[1740384635265,6.2417,160.18,160.14,0.04685035]
[1740384635864,23.10895805,160.19,160.14,6.28995035]
[1740384636068,0.04064576,160.19,160.14,0.04685035]
[1740384636467,6.28184576,160.19,160.14,0.04685035]
[1740384636666,0.04064576,160.19,160.14,0.04685035]
[1740384637463,0.04064576,160.19,160.16,6.242]
[1740384637659,0.04064576,160.19,160.14,0.04685035]
[1740384638069,0.04064576,160.19,160.18,6.2416]
[1740384639769,0.04064576,160.19,160.17,6.2419]
[1740384639965,0.04064576,160.19,160.15,1.9445]
[1740384640171,6.2416,160.18,160.15,1.9445]
[1740384640371,16.86765805,160.19,160.14,0.04685035]
[1740384642270,6.2418,160.18,160.14,0.04685035]
[1740384643178,6.2422,160.17,160.14,0.04685035]
[1740384644279,28.31995308,160.19,160.14,0.04685035]
[1740384644482,16.86765805,160.19,160.14,0.04685035]
[1740384644977,6.2423,160.17,160.14,0.04685035]
[1740384645681,6.2426,160.16,160.14,0.04685035]
[1740384646581,6.2427,160.15,160.14,0.04685035]
[1740384647883,6.245,160.1,160.01,25.948743]
[1740384648081,16.82701229,160.12,160.03,5.6063]
[1740384648583,6.2445,160.11,160.06,6.246]
[1740384649082,0.04756697,160.1,160.07,0.0428864]
[1740384650481,0.04756697,160.1,160.07,6.2886864]
[1740384650984,0.04756697,160.1,160.07,0.0428864]
[1740384651376,6.2451,160.09,160.07,0.0428864]
[1740384651883,6.2455,160.08,160.07,0.0428864]
[1740384657797,33.65402458,160.08,159.95,6.2504]
[1740384657982,16.82701229,160.01,159.94,34.598324]
[1740384658182,8.62,160.0,159.94,34.598324]
[1740384658991,8.66294851,160.0,159.96,0.38189789]
[1740384659593,16.82701229,159.99,159.96,0.38189789]
[1740384659992,6.2497,159.97,159.96,0.38189789]
[1740384660888,0.04294851,160.0,159.96,0.38189789]
[1740384661192,0.04294851,160.0,159.96,17.20891018]
[1740384661588,0.04294851,160.0,159.97,5.6134]
[1740384661990,6.2471,160.04,159.98,6.2493]
[1740384663194,0.04255549,160.03,159.99,0.04362779]
[1740384663993,16.86956778,160.03,159.99,0.04362779]
[1740384665106,6.2484,160.01,159.99,0.04362779]
[1740384665891,14.9086,160.0,159.99,0.04362779]
[1740384670902,6.2486,160.0,159.99,0.04362779]
[1740384675594,0.04255549,160.03,159.99,0.04362779]
[1740384676904,6.29025549,160.03,159.99,0.04362779]
[1740384677093,0.04255549,160.03,159.99,0.04362779]
[1740384677294,0.04255549,160.03,160.0,6.2483]
[1740384677701,0.04255549,160.03,160.0,1.8778]
[1740384679000,16.86956778,160.03,159.99,0.04362779]
[1740384679207,6.2486,160.0,159.99,0.04362779]
[1740384683506,0.04255549,160.03,159.96,0.34191938]
[1740384683706,16.82701229,160.01,159.96,0.34191938]
[1740384684407,6.2492,159.99,159.96,0.34191938]
[1740384684610,0.0473249,160.0,159.97,0.0448554]
[1740384685815,6.2960249,160.0,159.97,0.0448554]
[1740384686013,0.0473249,160.0,159.97,0.0448554]
[1740384686612,6.2494,159.98,159.97,0.0448554]
[1740384686819,16.82701229,159.99,159.96,0.34191938]
[1740384687112,16.82701229,159.97,159.96,0.34191938]
[1740384687311,23.07671229,159.97,159.96,0.34191938]
[1740384690720,6.2497,159.97,159.96,0.34191938]
[1740384691427,0.0473249,160.0,159.96,0.34191938]
[1740384692926,0.0473249,160.0,159.96,2.27501938]
[1740384693330,11.33314429,160.06,159.96,2.27501938]
[1740384693331,16.82701229,160.04,159.96,2.27501938]
[1740384693534,11.33314429,160.06,159.97,1.9439]
[1740384693535,8.64,160.05,159.97,1.9439]
[1740384693829,16.82701229,160.04,159.97,1.9439]
[1740384694528,6.29045598,160.02,159.99,0.04676358]
[1740384695126,6.2482,160.01,159.99,0.04676358]
[1740384698634,6.29025598,160.02,159.99,0.04676358]
[1740384700237,0.04225598,160.02,159.99,0.04676358]